bitfinex-derivatives/quotes_SOLF0:USTF0_20250909
["timestamp","ask_amount","ask_price","bid_price","bid_amount"]
[1757394266104,1.34364894,214.67,214.6,1.34364894]
[1757394267105,7.75,214.68,214.6,1.34364894]
[1757394267303,1.34364894,214.66,214.6,1.34364894]
[1757394267503,7.75,214.65,214.58,7.76]
[1757394267704,7.75,214.65,214.59,1.34364894]
[1757394269210,5.2145361,214.77,214.56,35.72]
[1757394269211,1.34364894,214.62,214.56,35.72]
[1757394269408,7.75,214.61,214.56,35.72]
[1757394269808,1.34364894,214.62,214.56,35.72]
[1757394270004,7.75,214.61,214.56,35.72]
[1757394270613,1.34364894,214.62,214.56,35.72]
[1757394270812,9.09364894,214.62,214.56,35.72]
[1757394275715,1.34364894,214.6,214.53,322.08364894]
[1757394275914,7.75,214.59,214.53,9.10364894]
[1757394276216,7.75,214.57,214.49,7.76]
[1757394276420,1.34364894,214.55,214.49,7.76]
[1757394276910,7.75,214.54,214.47,1.34364894]
[1757394278618,7.75,214.6,214.51,1.34364894]
[1757394278817,1.34364894,214.59,214.51,1.34364894]
[1757394280422,1.34364894,214.59,214.53,1.34364894]
[1757394280618,7.75,214.6,214.55,1.34364894]
[1757394280823,7.75,214.6,214.56,7.76]
[1757394281220,7.75,214.6,214.55,1.34364894]
[1757394281521,7.75,214.6,214.55,9.10364894]
[1757394281721,7.75,214.6,214.55,7.76]
[1757394282117,7.75,214.61,214.55,7.76]
[1757394289128,7.75,214.61,214.57,7.08]
[1757394290128,59.82,214.68,214.57,7.08]
[1757394290330,7.54,214.61,214.57,7.08]
[1757394292424,8.88364894,214.65,214.57,7.08]
[1757394297820,7.54,214.65,214.6,1.34364894]
[1757394298024,7.54,214.65,214.61,7.08]
[1757394298926,7.54,214.65,214.6,1.34364894]
[1757394299228,7.54,214.65,214.61,7.08]
[1757394299621,7.54,214.65,214.6,1.34364894]
[1757394299823,7.54,214.65,214.61,7.08]
[1757394300534,8.88364894,214.69,214.62,1.34364894]
[1757394300726,7.54,214.69,214.62,1.34364894]
[1757394301126,7.54,214.69,214.64,1.34364894]
[1757394301330,7.54,214.73,214.66,8.42364894]
[1757394302528,1.34364894,214.74,214.68,1.34364894]
[1757394302736,7.54,214.74,214.68,1.34364894]
[1757394306835,7.54,214.69,214.6,7.08]
[1757394307134,8.88364894,214.66,214.6,8.42364894]
[1757394307535,1.34364894,214.64,214.58,1.34364894]
[1757394307836,8.88364894,214.64,214.58,1.34364894]
[1757394309339,8.88364894,214.64,214.56,8.42364894]
[1757394309541,1.34364894,214.62,214.56,8.42364894]
[1757394309739,1.34364894,214.62,214.56,1.34364894]
[1757394309938,8.88364894,214.62,214.56,1.34364894]
[1757394310133,7.54,214.62,214.56,1.34364894]
[1757394311044,1.34364894,214.67,214.58,8.42364894]
[1757394311541,7.54,214.66,214.58,8.42364894]
[1757394311844,1.34364894,214.65,214.58,8.42364894]
[1757394318348,7.54,214.66,214.58,7.08]
[1757394318744,7.54,214.66,214.54,7.06]
[1757394318943,7.54,214.66,214.55,4.1941]
[1757394319141,7.54,214.66,214.56,7.06]
[1757394327853,7.54,214.66,214.56,11.2537]
[1757394328056,7.51,214.71,214.61,2.10242692]
[1757394328251,7.51,214.71,214.62,7.06]
[1757394328557,7.51,214.71,214.64,2.10242692]
[1757394328760,7.51,214.71,214.65,7.06]
[1757394329054,7.51,214.75,214.65,7.06]
[1757394329554,7.51,214.75,214.67,2.10242692]
[1757394329754,7.51,214.75,214.68,7.06]
[1757394333761,5.2145361,214.82,214.68,7.06]
[1757394333956,7.51,214.81,214.7,2.10242692]
[1757394334355,7.51,214.81,214.71,7.06]
[1757394335562,7.51,214.78,214.66,9.16242692]
[1757394336055,7.51,214.78,214.66,7.06]
[1757394336260,7.51,214.78,214.66,9.16242692]
[1757394337264,9.61242692,214.78,214.66,9.16242692]
[1757394339060,9.61242692,214.78,214.67,7.06]
[1757394339267,7.51,214.78,214.67,7.06]
[1757394339463,7.51,214.78,214.7,7.06]
[1757394339666,7.51,214.82,214.73,7.06]
[1757394340266,7.51,214.82,214.73,9.16242692]
[1757394342464,7.51,214.82,214.73,7.06]
[1757394342668,7.51,214.82,214.7,2.10242692]
[1757394343069,9.61242692,214.82,214.71,7.06]
[1757394343667,7.51,214.82,214.71,9.16242692]
[1757394346072,2.10242692,214.8,214.71,7.06]
[1757394346261,2.10242692,214.8,214.68,2.10242692]
[1757394346262,7.78,214.79,214.68,9.64242692]
[1757394351076,7.78,214.79,214.69,7.54]
[1757394351978,9.88242692,214.83,214.72,7.54]
[1757394358466,2.10242692,214.8,214.72,7.54]
[1757394358674,7.78,214.79,214.72,7.54]
[1757394359474,2.10242692,214.77,214.68,7.54]
[1757394359675,7.78,214.76,214.68,7.54]
[1757394361280,9.88242692,214.77,214.68,7.54]
[1757394361779,7.78,214.77,214.68,7.54]
[1757394362989,2.10242692,214.8,214.68,7.54]
[1757394363389,7.78,214.79,214.68,7.54]
[1757394364288,2.10242692,214.77,214.68,7.54]
[1757394364490,7.78,214.76,214.68,7.54]
[1757394364889,7.78,214.76,214.65,7.54]
[1757394365492,7.78,214.73,214.65,7.54]
[1757394368596,2.10242692,214.74,214.65,7.54]
[1757394368796,7.78,214.76,214.65,7.54]
[1757394373591,7.5,214.73,214.65,7.54]
[1757394376996,7.5,214.73,214.6,430.98242692]
[1757394377202,7.5,214.73,214.61,7.75]
[1757394378100,7.5,214.73,214.63,2.10242692]
[1757394378306,7.5,214.73,214.64,7.75]
[1757394378998,5.2145361,214.77,214.67,7.75]
[1757394378999,2.10242692,214.77,214.67,7.75]
[1757394380507,1.34403311,214.76,214.69,1.34403311]
[1757394383709,7.5,214.75,214.67,9.09403311]
[1757394384004,1.34403311,214.74,214.67,9.09403311]
[1757394393418,7.5,214.73,214.67,7.75]
[1757394393715,7.5,214.71,214.67,7.75]
[1757394394216,1.34403311,214.72,214.67,7.75]
[1757394394416,1.34403311,214.72,214.66,9.09403311]
[1757394396624,7.5,214.74,214.66,9.09403311]
[1757394396819,1.34403311,214.73,214.66,9.09403311]
[1757394397621,7.5,214.74,214.66,9.09403311]
[1757394397918,8.84403311,214.74,214.66,9.09403311]
[1757394398721,8.84403311,214.74,214.69,7.75]
[1757394400116,1.34403311,214.74,214.68,9.09403311]
[1757394400517,1.34403311,214.74,214.68,7.75]
[1757394402124,1.34403311,214.74,214.68,9.09403311]
[1757394403420,7.05,214.71,214.68,7.75]
[1757394404519,1.34403311,214.72,214.66,7.71]
[1757394404721,1.34403311,214.74,214.66,7.71]
[1757394405121,1.34403311,214.74,214.68,7.71]
[1757394408127,7.05,214.75,214.68,7.71]
[1757394408319,8.39403311,214.75,214.68,7.71]
[1757394409118,1.34403311,214.78,214.7,7.71]
[1757394409517,7.05,214.79,214.72,7.71]
[1757394409728,7.05,214.79,214.72,9.05403311]
[1757394410427,7.05,214.79,214.72,13.24483311]
[1757394410628,7.05,214.79,214.75,7.71]
[1757394411328,1.34403311,214.8,214.75,7.71]
[1757394411529,7.05,214.79,214.72,1.34403311]
[1757394411826,1.34403311,214.78,214.72,1.34403311]
[1757394412128,1.34403311,214.76,214.73,0.03020794]
[1757394412327,8.39403311,214.74,214.73,0.03020794]
[1757394425946,7.05,214.74,214.73,0.03020794]
[1757394426148,8.39403311,214.74,214.73,0.03020794]
[1757394426746,7.05,214.73,214.63,7.71]
[1757394427052,7.05,214.65,214.58,1.34403311]
[1757394427545,7.05,214.65,214.59,7.71]
[1757394428044,1.37571905,214.64,214.59,7.71]
[1757394428649,8.39403311,214.62,214.59,7.71]
[1757394428850,8.39403311,214.62,214.55,7.71]
[1757394429042,0.03168594,214.64,214.55,7.71]
[1757394429043,7.05,214.59,214.55,7.71]
[1757394429340,1.34403311,214.58,214.52,1.34403311]
[1757394429745,0.0335864,214.56,214.53,7.71]
[1757394430351,0.0335864,214.56,214.52,1.34403311]
[1757394430541,0.0335864,214.56,214.53,7.71]
[1757394430945,0.0335864,214.56,214.45,5.20154582]
[1757394430946,7.0835864,214.56,214.5,1.34403311]
[1757394431245,7.0835864,214.56,214.5,9.05403311]
[1757394431845,0.0335864,214.56,214.5,9.05403311]
[1757394434554,0.0335864,214.56,214.5,7.71]
[1757394434749,0.0335864,214.56,214.51,1.34403311]
[1757394434954,0.0335864,214.56,214.52,7.42]
[1757394435356,0.0335864,214.56,214.51,1.34403311]
[1757394436056,0.0335864,214.56,214.52,7.42]
[1757394436245,0.0335864,214.56,214.51,1.34403311]
[1757394436651,0.0335864,214.56,214.52,7.42]
[1757394436851,0.0335864,214.56,214.51,1.34403311]
[1757394437651,0.0335864,214.56,214.52,7.42]
[1757394437856,0.0335864,214.56,214.51,1.34403311]
[1757394438053,0.0335864,214.56,214.46,119.7357]
[1757394438054,0.0335864,214.56,214.54,7.42]
[1757394438250,0.0335864,214.56,214.53,1.34403311]
[1757394438450,0.0335864,214.56,214.54,7.42]
[1757394439054,0.0335864,214.56,214.53,1.34403311]
[1757394439260,0.0335864,214.56,214.54,7.42]
[1757394439655,0.0335864,214.56,214.53,1.34403311]
[1757394439855,0.0335864,214.56,214.54,7.42]
[1757394440665,0.0335864,214.56,214.5,7.42]
[1757394442864,7.68,214.55,214.47,7.42]
[1757394451565,0.0335864,214.56,214.47,7.42]
[1757394454575,7.68,214.55,214.47,7.42]
[1757394455073,7.68,214.52,214.42,7.42]
[1757394455871,0.03017928,214.49,214.44,7.42]
[1757394456273,9.78323606,214.56,214.44,7.42]
[1757394456468,0.03013638,214.49,214.44,7.42]
[1757394457673,0.03013638,214.49,214.44,9.52323606]
[1757394457873,0.03013638,214.49,214.45,7.42]
[1757394458771,0.03013638,214.49,214.44,2.10323606]
[1757394458968,0.03013638,214.49,214.45,7.42]
[1757394461078,0.03013638,214.49,214.48,7.42]
[1757394464778,0.03013638,214.49,214.48,9.52323606]
[1757394470978,0.03013638,214.49,214.48,7.42]
[1757394472980,0.03013638,214.49,214.48,122.88]
[1757394474477,0.03013638,214.49,214.45,7.79]
[1757394474674,7.76,214.48,214.45,7.79]
[1757394475280,7.76,214.48,214.43,115.46]
[1757394475281,0.03013638,214.49,214.43,115.46]
[1757394475476,7.79013638,214.49,214.43,115.46]
[1757394475682,7.79013638,214.49,214.43,123.25]
[1757394475873,0.03013638,214.49,214.43,115.46]
[1757394476073,0.03013638,214.49,214.44,7.79]
[1757394476279,0.03013638,214.49,214.43,123.25]
[1757394479486,0.03013638,214.49,214.44,7.79]
[1757394479782,0.03013638,214.49,214.43,115.46]
[1757394479982,0.03013638,214.49,214.44,7.79]
[1757394480583,0.03013638,214.49,214.43,115.46]
[1757394480785,0.03013638,214.49,214.44,7.79]
[1757394480986,0.03013638,214.49,214.43,115.46]
[1757394481182,0.03013638,214.49,214.44,115.44]
[1757394481384,0.03013638,214.49,214.44,123.23]
[1757394481689,0.03013638,214.49,214.44,115.44]
[1757394481987,7.76,214.48,214.44,115.44]
[1757394482183,0.03013638,214.49,214.44,115.44]
[1757394482382,7.76,214.48,214.44,115.44]
[1757394482580,0.03013638,214.49,214.44,7.79]
[1757394483989,7.76,214.48,214.44,7.79]
[1757394485587,7.76,214.48,214.42,115.44]
[1757394487188,0.03013638,214.49,214.42,115.44]
[1757394487387,0.03013638,214.49,214.43,7.79]
[1757394493891,7.32013638,214.49,214.43,7.79]
[1757394502286,7.32013638,214.49,214.43,9.13724547]
[1757394503298,7.32013638,214.49,214.43,7.79]
[1757394503596,7.32013638,214.49,214.43,9.13724547]
[1757394510300,0.03013638,214.49,214.45,1.34724547]
[1757394510501,0.03013638,214.49,214.46,7.5]
[1757394510708,0.03013638,214.49,214.45,1.34724547]
[1757394511008,0.03013638,214.49,214.46,7.5]
[1757394511608,0.03013638,214.49,214.45,1.34724547]
[1757394511908,0.03013638,214.49,214.46,7.5]
[1757394513209,7.32013638,214.49,214.46,7.5]
[1757394514119,7.32013638,214.49,214.45,1.34724547]
[1757394514120,7.32013638,214.49,214.43,49.18724547]
[1757394514717,7.32013638,214.49,214.44,7.5]
[1757394514914,7.32013638,214.49,214.43,49.18724547]
[1757394515319,7.32013638,214.49,214.44,7.5]
[1757394515617,7.32013638,214.49,214.43,49.18724547]
[1757394515819,7.32013638,214.49,214.44,7.5]
[1757394516017,7.32013638,214.49,214.43,49.18724547]
[1757394516218,7.32013638,214.49,214.44,7.5]
[1757394516413,0.03013638,214.49,214.43,49.18724547]
[1757394517317,0.03013638,214.49,214.44,7.5]
[1757394517517,8.63724547,214.48,214.4,42.38724547]
[1757394517712,8.63724547,214.48,214.41,7.5]
[1757394518618,8.63724547,214.48,214.42,1.34724547]
[1757394522523,8.63724547,214.48,214.41,7.5]
[1757394522724,8.63724547,214.48,214.41,8.84724547]
[1757394523519,0.03013638,214.49,214.44,7.68]
[1757394523721,0.03013638,214.49,214.43,9.02724547]
[1757394523925,0.03013638,214.49,214.38,52.66]
[1757394523926,7.57,214.48,214.45,7.68]
[1757394524421,0.03013638,214.49,214.45,7.68]
[1757394525025,7.57,214.48,214.45,7.68]
[1757394526123,7.57,214.48,214.4,7.68]
[1757394526321,7.57,214.46,214.4,7.68]
[1757394526621,7.60013638,214.49,214.43,1.34724547]
[1757394527126,7.57,214.49,214.43,1.34724547]
[1757394527319,7.57,214.49,214.44,7.68]
[1757394527320,7.57,214.47,214.44,7.68]
[1757394527616,0.03514702,214.48,214.43,1.34724547]
[1757394528219,5.2145361,214.55,214.47,7.68]
[1757394528531,7.57,214.58,214.53,1.34724547]
[1757394528830,8.91724547,214.6,214.53,1.34724547]
[1757394529021,8.91724547,214.6,214.52,1.34724547]
[1757394529328,7.57,214.58,214.52,1.34724547]
[1757394531123,7.57,214.58,214.54,1.34724547]
[1757394531329,7.57,214.62,214.56,9.02724547]
[1757394531523,7.57,214.64,214.58,1.34724547]
[1757394532526,7.57,214.6,214.53,1.34724547]
[1757394535828,7.57,214.6,214.52,7.68]
[1757394536030,7.57,214.6,214.53,1.34724547]
[1757394537227,1.34724547,214.59,214.53,1.34724547]
[1757394537429,7.57,214.56,214.51,1.34724547]
[1757394537832,7.57,214.56,214.5,1.34724547]
[1757394538232,1.34724547,214.55,214.48,7.68]
[1757394538427,7.57,214.52,214.48,7.68]
[1757394540836,7.57,214.52,214.48,9.02724547]
[1757394542234,7.57,214.54,214.48,9.02724547]
[1757394542535,7.57,214.54,214.48,7.68]
[1757394542735,1.34724547,214.53,214.48,7.68]
[1757394542936,7.57,214.52,214.48,7.68]
[1757394543533,7.57,214.52,214.47,1.34724547]
[1757394543738,7.57,214.52,214.48,7.68]
[1757394543933,7.57,214.52,214.45,9.02724547]
[1757394545440,7.57,214.52,214.48,7.68]
[1757394545841,7.57,214.52,214.45,1.34724547]
[1757394546140,1.34724547,214.51,214.45,1.34724547]
[1757394546341,8.91724547,214.51,214.45,1.34724547]
[1757394546542,8.91724547,214.51,214.43,9.02724547]
[1757394551646,8.91724547,214.51,214.43,7.68]
[1757394551949,8.91724547,214.51,214.43,9.02724547]
[1757394558643,8.91724547,214.51,214.43,7.68]
[1757394558848,8.91724547,214.51,214.44,1.34724547]
[1757394560649,1.34724547,214.49,214.41,1.34724547]
[1757394560849,5.2145361,214.58,214.41,1.34724547]
[1757394560850,7.25,214.46,214.41,1.34724547]
[1757394561047,1.34724547,214.47,214.41,1.34724547]
[1757394561247,7.25,214.46,214.41,1.34724547]
[1757394562254,1.34724547,214.47,214.41,1.34724547]
[1757394562456,7.25,214.49,214.39,7.26]
[1757394563350,2.10548317,214.55,214.42,7.26]
[1757394563555,7.25,214.54,214.42,7.26]
[1757394563755,7.25,214.54,214.43,2.10548317]
[1757394564255,7.25,214.54,214.44,7.26]
[1757394565953,7.25,214.54,214.47,7.29284883]
[1757394566749,7.25,214.54,214.47,0.03284883]
[1757394573356,7.25,214.54,214.47,7.29284883]
[1757394573853,7.25,214.54,214.47,9.398332]
[1757394577556,7.25,214.54,214.47,7.29284883]
[1757394589663,7.83,214.57,214.5,7.58]
[1757394589865,74.77214282,214.58,214.52,2.10548317]
[1757394590062,7.83,214.62,214.53,7.58]
[1757394590568,7.83,214.62,214.55,0.02950177]
[1757394593567,7.83,214.59,214.55,0.02950177]
[1757394599167,2.10548317,214.6,214.55,0.02950177]
[1757394599569,7.83,214.59,214.55,0.02950177]
[1757394599866,2.10548317,214.6,214.55,0.02950177]
[1757394600368,7.83,214.59,214.56,7.58]
[1757394600673,7.83,214.6,214.55,0.02950177]
[1757394601174,9.93548317,214.61,214.55,7.60950177]
[1757394601366,7.83,214.61,214.55,7.60950177]
[1757394603476,9.93548317,214.61,214.55,0.02950177]
[1757394607471,7.83,214.61,214.55,0.02950177]
[1757394607671,7.83,214.57,214.55,0.02950177]
[1757394608073,2.10548317,214.58,214.55,0.02950177]
[1757394609179,7.83,214.57,214.55,0.02950177]
[1757394610581,7.83,214.57,214.47,7.58]
[1757394610874,7.83,214.53,214.47,7.58]
[1757394611783,0.03388983,214.52,214.43,7.58]
[1757394612278,0.03388983,214.52,214.43,11.50185367]
[1757394612478,0.03388983,214.52,214.44,7.58]
[1757394612876,0.03388983,214.52,214.45,2.10548317]
[1757394613073,0.03388983,214.52,214.46,7.58]
[1757394617687,0.03388983,214.52,214.46,9.68548317]
[1757394618184,0.03388983,214.52,214.47,7.41]
[1757394618582,0.03388983,214.52,214.46,2.10548317]
[1757394619178,0.03388983,214.52,214.47,7.41]
[1757394622693,0.03388983,214.52,214.5,7.41]
[1757394623392,0.03388983,214.52,214.51,7.41]
[1757394623988,7.52,214.62,214.52,4.1945]
[1757394624290,7.52,214.62,214.56,1.3454708]
[1757394625292,7.52,214.63,214.57,0.03240837]
[1757394626393,7.52,214.63,214.59,7.41]
[1757394627393,7.52,214.64,214.58,1.3454708]
[1757394627591,7.52,214.64,214.57,0.03240837]
[1757394627893,7.52,214.62,214.57,0.03240837]
[1757394628089,8.8654708,214.63,214.58,7.41]
[1757394628288,8.8654708,214.63,214.56,1.3454708]
[1757394628489,8.8654708,214.63,214.58,1.37547542]
[1757394628691,1.3454708,214.63,214.59,7.41]
[1757394629090,1.3454708,214.63,214.58,1.37547542]
[1757394629293,7.52,214.62,214.58,1.37547542]
[1757394629690,1.3454708,214.63,214.58,1.37547542]
[1757394630092,7.52,214.62,214.58,1.37547542]
[1757394630294,1.3454708,214.63,214.58,1.37547542]
[1757394630696,7.52,214.62,214.58,1.37547542]
[1757394630896,7.52,214.62,214.58,8.78547542]
[1757394631195,1.3454708,214.63,214.58,8.78547542]
[1757394631898,7.52,214.62,214.58,8.78547542]
[1757394632199,1.3454708,214.63,214.58,8.78547542]
[1757394632392,7.52,214.61,214.58,8.78547542]
[1757394632696,1.3454708,214.63,214.58,7.44000462]
[1757394632895,1.3454708,214.61,214.58,0.03000462]
[1757394633101,7.52,214.6,214.58,0.03000462]
[1757394633299,1.3454708,214.61,214.58,0.03000462]
[1757394634500,7.52,214.6,214.58,0.03000462]
[1757394634995,1.3454708,214.61,214.58,0.03000462]
[1757394635399,8.8654708,214.59,214.58,0.03000462]
[1757394636401,9.3254708,214.59,214.5,7.41]
[1757394636592,1.3454708,214.55,214.5,7.41]
[1757394636792,1.3454708,214.55,214.47,1.3454708]
[1757394636999,1.3454708,214.53,214.46,8.7554708]
[1757394637594,0.03584004,214.52,214.46,8.7554708]
[1757394637998,0.03584004,214.52,214.49,7.41]
[1757394638304,0.03584004,214.52,214.51,7.41]
[1757394652713,0.03584004,214.52,214.51,8.7554708]
[1757394657016,7.82,214.62,214.55,7.69]
[1757394657212,1.3454708,214.65,214.59,1.3454708]
[1757394657413,9.1654708,214.65,214.59,1.3454708]
[1757394658018,9.1654708,214.65,214.58,114.64]
[1757394658313,1.3454708,214.65,214.6,0.03171943]
[1757394658514,7.82,214.64,214.6,0.03171943]
[1757394658716,1.3454708,214.65,214.6,0.03171943]
[1757394659520,7.82,214.64,214.6,0.03171943]
[1757394659722,1.3454708,214.65,214.6,0.03171943]
[1757394659922,7.82,214.64,214.6,0.03171943]
[1757394660116,1.3454708,214.66,214.6,0.03171943]
[1757394660525,7.82,214.65,214.6,0.03171943]
[1757394660729,1.3454708,214.66,214.6,0.03171943]
[1757394660925,7.82,214.65,214.6,0.03171943]
[1757394661221,7.82,214.61,214.6,0.03171943]
[1757394661425,1.3454708,214.62,214.54,24.62]
[1757394661729,7.82,214.57,214.54,24.62]
[1757394663023,1.37917541,214.58,214.54,24.62]
[1757394663321,7.82,214.57,214.54,24.62]
[1757394663731,1.37917541,214.58,214.54,24.62]
[1757394663923,7.82,214.57,214.54,24.62]
[1757394664122,1.37917541,214.58,214.54,24.62]
[1757394664322,7.82,214.57,214.54,24.62]
[1757394664731,7.82,214.57,214.53,7.69]
[1757394665030,1.37917541,214.58,214.53,7.69]
[1757394665332,7.82,214.57,214.52,1.3454708]
[1757394665627,1.37917541,214.58,214.5,93.8354708]
[1757394665628,7.82,214.56,214.5,93.8354708]
[1757394667633,7.82,214.55,214.48,115.9454708]
[1757394667833,1.3454708,214.54,214.48,115.9454708]
[1757394668034,7.82,214.53,214.48,114.6]
[1757394668228,7.85052361,214.53,214.48,114.6]
[1757394668427,1.3454708,214.52,214.48,122.29]
[1757394668629,7.82,214.51,214.44,123.6354708]
[1757394669431,7.82,214.51,214.44,122.29]
[1757394669733,7.82,214.51,214.44,123.6354708]
[1757394673936,7.82,214.51,214.46,1.3454708]
[1757394674231,7.82,214.51,214.47,7.7]
[1757394674734,1.3454708,214.55,214.48,1.3454708]
[1757394674932,8.4654708,214.55,214.48,1.3454708]
[1757394675135,8.4654708,214.55,214.49,7.7]
[1757394686447,7.12,214.55,214.49,7.7]
[1757394688244,7.12,214.55,214.46,7.7]
[1757394691847,9.22401156,214.55,214.46,7.7]
[1757394692746,9.22401156,214.55,214.43,7.7]
[1757394696555,7.12,214.55,214.43,7.7]
[1757394696853,5.2015875,214.59,214.43,7.7]
[1757394696854,7.12,214.53,214.43,7.7]
[1757394717669,7.48,214.5,214.4,7.52]
[1757394727570,9.58401156,214.5,214.4,7.52]
[1757394739276,2.10401156,214.47,214.36,6.22913823]
[1757394739482,7.52,214.42,214.36,1.0]
[1757394740278,7.52,214.42,214.37,7.67]
[1757394740680,7.52,214.42,214.36,1.0]
[1757394741180,7.52,214.42,214.37,7.67]
[1757394741578,7.52,214.45,214.36,8.67]
[1757394742873,7.52,214.45,214.37,7.67]
[1757394744684,7.52,214.45,214.38,7.67]
[1757394746279,7.52,214.45,214.4,1.34751683]
[1757394746584,7.52,214.46,214.4,1.34751683]
[1757394750191,1.34751683,214.45,214.39,7.67]
[1757394750385,7.52,214.44,214.39,7.67]
[1757394751091,8.86751683,214.45,214.39,7.67]
[1757394751883,7.52,214.45,214.4,1.34751683]
[1757394752185,1.34751683,214.48,214.41,7.67]
[1757394752392,7.52,214.47,214.41,7.67]
[1757394753095,1.34751683,214.46,214.4,1.34751683]
[1757394753498,7.52,214.45,214.37,7.67]
[1757394753699,7.52,214.45,214.38,1.34751683]
[1757394754098,1.34751683,214.44,214.38,1.34751683]
[1757394754597,7.52,214.43,214.37,9.01751683]
[1757394755699,8.86751683,214.46,214.4,7.67]
[1757394758406,7.52,214.46,214.4,7.67]
[1757394759902,7.52,214.46,214.39,1.34751683]
[1757394761213,7.52,214.46,214.4,7.67]
[1757394766704,1.34751683,214.45,214.35,5.22913823]
[1757394766901,7.8,214.44,214.37,1.34751683]
[1757394767205,1.34751683,214.43,214.36,7.13]
[1757394767507,45.98,214.55,214.36,7.13]
[1757394767508,7.8,214.42,214.36,7.13]
[1757394767710,7.8,214.42,214.34,114.34]
[1757394767711,7.8,214.49,214.41,1.34751683]
[1757394767911,1.34751683,214.48,214.41,1.34751683]
[1757394768112,7.8,214.47,214.41,1.34751683]
[1757394770306,7.8,214.47,214.4,8.47751683]
[1757394776117,7.8,214.47,214.4,7.13]
[1757394776315,1.34751683,214.46,214.4,7.13]
[1757394776516,7.8,214.45,214.4,7.13]
[1757394777117,7.8,214.44,214.41,7.13]
[1757394778418,7.8,214.45,214.39,1.34751683]
[1757394778620,7.8,214.45,214.38,7.13]
[1757394778818,7.8,214.45,214.39,1.34751683]
[1757394779720,7.8,214.45,214.38,8.47751683]
[1757394786023,7.8,214.45,214.38,7.13]
[1757394786223,7.8,214.45,214.38,8.47751683]
[1757394789533,7.8,214.45,214.38,7.13]
[1757394789731,7.8,214.45,214.38,8.47751683]
[1757394790327,1.34751683,214.42,214.35,7.13]
[1757394790523,5.2015875,214.48,214.36,1.34751683]
[1757394790723,7.8,214.45,214.39,7.13]
[1757394791123,7.8,214.45,214.41,7.13]
[1757394791332,7.8,214.46,214.41,7.13]
[1757394791529,1.34751683,214.47,214.41,7.13]
[1757394791827,7.8,214.46,214.41,7.13]
[1757394792033,1.34751683,214.47,214.41,7.13]
[1757394792725,7.8,214.46,214.41,7.13]
[1757394793426,1.34751683,214.47,214.41,7.13]
[1757394795431,1.34751683,214.45,214.36,4.1976]
[1757394795634,7.48,214.44,214.37,8.94751683]
[1757394798133,7.48,214.44,214.39,1.34751683]
[1757394798339,7.48,214.44,214.4,7.6]
[1757394799134,7.48,214.44,214.39,1.34751683]
[1757394799335,7.48,214.44,214.4,7.6]
[1757394799734,7.48,214.45,214.4,7.6]
[1757394799935,7.48,214.45,214.39,8.94751683]
[1757394800142,7.48,214.45,214.39,7.6]
[1757394800342,7.48,214.45,214.39,8.94751683]
[1757394800936,8.82751683,214.45,214.39,8.94751683]
[1757394801142,8.82751683,214.45,214.39,7.6]
[1757394804943,8.82751683,214.45,214.37,1.34751683]
[1757394806843,8.82751683,214.45,214.38,7.6]
[1757394808347,7.48,214.45,214.38,7.6]
[1757394809048,9.58598303,214.45,214.34,7.6]
[1757394814458,7.48,214.45,214.34,7.6]
[1757394815556,7.48,214.45,214.36,7.6]
[1757394820253,7.48,214.45,214.36,2.10598303]
[1757394820456,7.48,214.45,214.37,7.6]